bitfinex-derivatives/quotes_ETHF0:USTF0_20260308
["timestamp","ask_amount","ask_price","bid_price","bid_amount"]
[1773010148908,3.44501751,1944.4,1943.4,3.24823995]
[1773010149608,3.44373506,1944.9,1944.0,3.35414444]
[1773010150602,3.44373506,1944.9,1943.6,3.35414444]
[1773010151008,3.44373506,1944.7,1943.6,3.35414444]
[1773010151410,3.44373506,1944.5,1943.6,3.35414444]
[1773010151609,10.17873506,1944.4,1943.6,3.35414444]
[1773010151812,3.44373506,1944.3,1943.6,3.35414444]
[1773010152113,6.735,1944.3,1943.6,3.35414444]
[1773010152308,3.44373506,1944.2,1943.4,3.35928766]
[1773010152511,3.44373506,1944.2,1943.4,0.00514322]
[1773010152915,3.44373506,1944.2,1943.4,3.35928766]
[1773010153114,10.17873506,1944.1,1943.4,3.35928766]
[1773010153814,3.44373506,1944.0,1943.4,3.35928766]
[1773010157821,3.44373506,1943.9,1943.4,3.35928766]
[1773010158019,3.44373506,1943.9,1943.4,0.00514322]
[1773010159017,3.44373506,1943.9,1942.9,3.35414444]
[1773010159721,3.44373506,1943.7,1942.9,3.35414444]
[1773010159917,3.44373506,1943.7,1942.9,3.35774479]
[1773010160219,3.44373506,1943.5,1942.9,3.35774479]
[1773010160420,10.18452938,1943.5,1942.9,3.35774479]
[1773010160817,3.44373506,1943.4,1942.9,0.00360035]
[1773010161720,3.44373506,1943.4,1942.7,3.35414444]
[1773010161921,3.44373506,1943.4,1942.2,6.736]
[1773010162223,3.44373506,1943.4,1942.3,3.35414444]
[1773010162422,3.44373506,1943.2,1942.3,3.35414444]
[1773010162717,3.44373506,1943.2,1942.3,3.35793221]
[1773010164121,10.18073506,1943.1,1942.3,3.35793221]
[1773010164924,3.44373506,1943.0,1942.3,3.35793221]
[1773010165716,6.737,1943.1,1942.3,3.35793221]
[1773010166620,10.18173506,1943.1,1942.3,3.35793221]
[1773010168120,3.44373506,1943.1,1942.3,3.35793221]
[1773010169126,3.44373506,1943.4,1942.3,3.35793221]
[1773010169317,10.18173506,1943.4,1942.5,3.35414444]
[1773010169521,3.44373506,1943.3,1942.5,3.35414444]
[1773010169926,3.44373506,1943.3,1942.3,3.35793221]
[1773010171024,3.44373506,1943.2,1942.3,3.35793221]
[1773010171225,3.44373506,1943.4,1942.3,3.35793221]
[1773010171424,10.18273506,1943.3,1942.3,3.35793221]
[1773010171917,3.44373506,1943.2,1942.3,3.35793221]
[1773010175826,6.739,1943.1,1942.3,3.35793221]
[1773010176031,9.88771811,1943.4,1942.3,3.35793221]
[1773010176529,3.14871811,1943.3,1942.3,3.35793221]
[1773010178525,3.15351243,1943.5,1942.5,3.34392151]
[1773010178732,3.14871811,1943.9,1942.9,3.34392151]
[1773010179933,3.15400213,1943.9,1942.9,3.34392151]
[1773010180227,3.15400213,1943.9,1942.4,3.34392151]
[1773010180624,3.14871811,1943.7,1942.4,3.34392151]
[1773010180825,3.14871811,1943.5,1942.4,3.34392151]
[1773010182634,3.14871811,1943.5,1942.3,0.00378777]
[1773010183025,3.14871811,1943.5,1942.3,3.34770928]
[1773010184333,3.14871811,1943.3,1942.3,3.34770928]
[1773010185335,3.14871811,1943.3,1942.3,0.00378777]
[1773010185738,3.14871811,1943.1,1942.3,0.00378777]
[1773010187640,3.14871811,1942.6,1941.0,3.34392151]
[1773010187838,3.14871811,1942.3,1941.0,3.34392151]
[1773010188137,3.14871811,1942.1,1941.0,3.34392151]
[1773010188338,3.14871811,1941.9,1941.0,3.34392151]
[1773010188537,9.89327624,1941.9,1941.0,3.34891945]
[1773010188838,3.14871811,1941.8,1941.0,3.34891945]
[1773010191129,3.14871811,1941.8,1941.0,0.00499794]
[1773010191328,3.14871811,1941.6,1940.6,3.34392151]
[1773010191634,3.14871811,1941.4,1940.6,3.34392151]
[1773010191833,6.74,1941.5,1940.6,3.34392151]
[1773010191834,3.14871811,1941.2,1940.6,3.34392151]
[1773010192237,0.00455813,1941.9,1940.6,3.35030695]
[1773010192238,3.14871811,1941.8,1940.6,3.35030695]
[1773010192535,3.14871811,1941.6,1940.6,3.35030695]
[1773010193835,3.14871811,1941.4,1940.6,3.35030695]
[1773010195238,3.14871811,1941.8,1940.8,3.34392151]
[1773010195441,3.14871811,1941.6,1940.8,3.34392151]
[1773010196140,3.14871811,1941.6,1940.6,3.35030695]
[1773010196338,3.14871811,1941.6,1940.6,0.00638544]
[1773010197641,3.14871811,1940.8,1939.5,3.34392151]
[1773010197843,3.14871811,1940.6,1939.5,3.34392151]
[1773010198553,3.14871811,1940.6,1939.5,3.34831428]
[1773010199755,3.14871811,1940.4,1939.5,3.34831428]
[1773010199954,3.14871811,1940.2,1939.0,4.01165091]
[1773010200152,3.14871811,1940.2,1937.9,12.34992151]
[1773010200153,3.14871811,1939.5,1938.0,6.51750922]
[1773010200352,6.744,1939.5,1938.5,3.34392151]
[1773010200656,0.0037406,1940.4,1938.8,3.34392151]
[1773010200852,3.14871811,1940.2,1938.8,3.34392151]
[1773010201052,3.14871811,1940.2,1939.1,3.34392151]
[1773010201853,9.89371811,1940.1,1939.1,3.34392151]
[1773010202049,3.14871811,1940.0,1939.1,3.34392151]
[1773010202563,6.745,1939.9,1939.1,3.34392151]
[1773010202762,3.41631963,1940.3,1939.1,3.34392151]
[1773010203054,6.745,1940.0,1939.1,3.34392151]
[1773010203256,3.41631963,1940.3,1939.3,3.57491295]
[1773010203257,6.746,1940.3,1939.3,3.57491295]
[1773010203657,3.41631963,1940.2,1939.3,3.57491295]
[1773010204764,10.16231963,1940.2,1939.3,3.57491295]
[1773010205066,6.746,1940.3,1939.3,3.57491295]
[1773010205266,10.16231963,1940.3,1939.3,3.57491295]
[1773010205461,3.41631963,1940.2,1939.3,3.57491295]
[1773010206161,3.41631963,1940.2,1938.9,3.57491295]
[1773010207766,3.44958896,1940.0,1938.9,3.57491295]
[1773010208466,3.44958896,1939.8,1938.9,3.57491295]
[1773010208766,3.44958896,1939.6,1938.9,3.57491295]
[1773010208963,10.19758896,1939.6,1938.9,3.57491295]
[1773010209355,3.44958896,1939.5,1938.9,3.57491295]
[1773010209557,3.44958896,1939.3,1938.9,3.57491295]
[1773010209767,3.44958896,1939.3,1938.8,3.30462687]
[1773010210266,3.44958896,1940.3,1938.8,3.30462687]
[1773010210563,3.19195617,1940.4,1938.8,3.30462687]
[1773010210564,3.44958896,1940.1,1938.8,3.30462687]
[1773010211770,3.44958896,1939.9,1938.0,3.2998386]
[1773010212069,3.44958896,1939.7,1938.0,3.2998386]
[1773010212868,3.44958896,1939.7,1938.2,3.2998386]
[1773010213069,3.44958896,1939.5,1938.2,3.2998386]
[1773010213265,3.44958896,1939.3,1938.2,3.2998386]
[1773010213867,10.19958896,1939.4,1938.2,3.2998386]
[1773010214161,3.44958896,1939.2,1938.2,3.2998386]
[1773010215366,10.19958896,1939.7,1938.6,3.2998386]
[1773010215774,3.44958896,1939.7,1938.6,3.2998386]
[1773010215965,3.44958896,1939.9,1938.8,3.2998386]
[1773010218271,3.44958896,1939.9,1938.3,3.2998386]
[1773010218473,3.44958896,1939.5,1938.0,3.30470487]
[1773010218674,3.44958896,1939.3,1938.0,3.30470487]
[1773010219978,3.44958896,1939.1,1938.0,3.30470487]
[1773010220173,3.44958896,1938.9,1938.0,3.30470487]
[1773010220379,3.44958896,1938.7,1938.0,0.00486627]
[1773010221682,3.44958896,1938.7,1937.6,3.2998386]
[1773010222279,3.44958896,1938.5,1937.6,3.2998386]
[1773010222478,10.20158896,1938.7,1938.1,3.2998386]
[1773010222782,10.20158896,1938.7,1938.1,3.30423721]
[1773010223280,3.44958896,1938.6,1938.1,0.00439861]
[1773010223778,3.44958896,1938.8,1938.1,3.30423721]
[1773010224484,3.44958896,1938.8,1938.1,0.00439861]
[1773010224877,3.44958896,1938.6,1938.1,0.00439861]
[1773010225284,3.44958896,1938.6,1938.1,3.30423721]
[1773010225785,3.44958896,1938.6,1938.1,0.00439861]
[1773010226083,3.44958896,1938.6,1938.0,0.001]
[1773010226473,3.44958896,1938.6,1937.1,3.2998386]
[1773010226676,10.20258896,1938.5,1937.1,3.2998386]
[1773010226883,6.753,1938.4,1937.3,3.2998386]
[1773010227078,10.20258896,1938.4,1937.3,3.30505646]
[1773010227377,10.20258896,1938.3,1937.3,3.30505646]
[1773010228679,3.44958896,1938.3,1937.3,3.30505646]
[1773010228884,10.20358896,1938.3,1937.3,3.30505646]
[1773010229580,6.754,1938.5,1937.3,3.30505646]
[1773010229779,6.754,1938.5,1937.5,3.2998386]
[1773010230088,10.20358896,1938.7,1937.7,3.2998386]
[1773010230581,3.44958896,1938.7,1937.7,3.2998386]
[1773010230779,10.20358896,1938.7,1937.7,3.2998386]
[1773010230978,3.44958896,1938.6,1937.7,3.2998386]
[1773010231378,3.44958896,1938.5,1937.7,3.2998386]
[1773010232180,3.44958896,1938.5,1937.5,3.2998386]
[1773010233688,6.754,1938.4,1937.5,3.2998386]
[1773010234189,10.10242818,1938.4,1937.5,3.2998386]
[1773010236091,3.34842818,1938.3,1937.3,3.18232219]
[1773010236398,10.10242818,1938.2,1937.3,3.18232219]
[1773010237195,6.754,1938.2,1937.3,3.18232219]
[1773010237690,10.10242818,1938.2,1937.3,3.18232219]
[1773010237895,0.00457223,1938.9,1937.7,3.17710433]
[1773010237896,10.10242818,1938.7,1937.7,3.17710433]
[1773010238098,3.34842818,1938.6,1937.7,3.17710433]
[1773010238897,3.34842818,1938.4,1937.7,3.17710433]
[1773010241199,3.34842818,1938.4,1937.4,3.17710433]
[1773010242000,10.10242818,1938.4,1937.4,3.17710433]
[1773010242296,3.34842818,1938.8,1937.5,0.25807]
[1773010242497,3.34842818,1938.7,1937.6,3.17710433]
[1773010247708,3.34842818,1938.5,1937.6,3.17710433]
[1773010247904,0.00457223,1938.9,1937.6,3.17710433]
[1773010248205,3.34842818,1938.7,1937.6,3.17710433]
[1773010249004,10.10242818,1938.7,1937.6,3.17710433]
[1773010250212,3.34842818,1938.6,1937.8,3.17710433]
[1773010250411,6.753,1938.7,1937.8,3.17710433]
[1773010250803,10.10142818,1938.7,1937.8,3.17710433]
[1773010251612,3.34842818,1938.6,1937.8,3.17710433]
[1773010254922,3.34842818,1938.5,1937.8,3.17710433]
[1773010258414,10.10142818,1938.6,1937.8,3.17710433]
[1773010258822,10.10142818,1938.8,1937.8,3.17710433]
[1773010259021,3.34842818,1938.7,1937.8,3.17710433]
[1773010260424,3.35300041,1938.9,1937.8,3.17710433]
[1773010260723,3.34842818,1939.3,1938.4,3.17710433]
[1773010260921,3.34842818,1939.5,1938.6,3.17710433]
[1773010261823,3.35414563,1939.5,1938.6,3.17710433]
[1773010264016,3.08789328,1940.5,1939.1,3.17507989]
[1773010264424,3.08789328,1940.4,1939.3,3.17507989]
[1773010265019,3.09452669,1940.4,1939.3,3.18001904]
[1773010265220,3.08789328,1940.3,1939.3,3.18001904]
[1773010265419,0.00663341,1940.4,1939.3,3.18001904]
[1773010265622,0.00663341,1940.4,1939.4,3.17507989]
[1773010265815,3.09452669,1940.4,1939.4,3.17507989]
[1773010266422,0.00663341,1940.4,1939.4,3.17507989]
[1773010267023,3.01110899,1940.8,1939.7,2.99984071]
[1773010267229,9.76310899,1941.1,1939.7,2.99984071]
[1773010267432,3.01110899,1941.1,1939.7,2.99984071]
[1773010267925,3.01524466,1941.1,1939.7,2.99984071]
[1773010268427,9.76210899,1941.0,1939.7,2.99984071]
[1773010268628,3.01110899,1941.0,1939.8,5.82703935]
[1773010268826,3.01110899,1941.0,1939.9,2.99984071]
[1773010271123,3.01110899,1941.0,1939.5,0.25781]
[1773010271124,3.01110899,1940.6,1939.4,2.99984071]
[1773010271319,3.01110899,1940.5,1939.4,2.99984071]
[1773010271728,6.75,1940.6,1939.4,2.99984071]
[1773010271729,3.01110899,1940.3,1939.4,2.99984071]
[1773010271927,9.76110899,1940.6,1939.4,3.18945561]
[1773010272125,9.76110899,1940.6,1939.6,2.99984071]
[1773010272126,3.01110899,1940.6,1939.6,2.99984071]
[1773010272320,3.01110899,1940.8,1939.7,2.99984071]
[1773010273025,9.76110899,1941.0,1939.7,2.99984071]
[1773010273529,3.01110899,1941.0,1939.7,2.99984071]
[1773010273929,3.01110899,1940.9,1939.7,2.99984071]
[1773010275629,3.01110899,1940.8,1939.7,2.99984071]
[1773010279230,9.93845561,1941.0,1939.1,0.39983944]
[1773010279231,3.01110899,1940.6,1939.5,2.99984071]
[1773010279531,3.01110899,1940.4,1939.5,2.99984071]
[1773010280229,3.01110899,1940.3,1939.5,2.99984071]
[1773010281132,3.01110899,1940.0,1939.0,2.99984071]
[1773010281340,3.01110899,1939.7,1938.8,2.99984071]
[1773010281532,3.01110899,1939.7,1938.4,0.40359627]
[1773010281533,3.01110899,1939.5,1938.4,2.99984071]
[1773010281732,3.01110899,1939.3,1938.4,2.99984071]
[1773010282332,3.01531628,1939.3,1938.4,3.00650667]
[1773010283634,3.01531628,1939.3,1938.4,0.00666596]
[1773010283937,3.01531628,1939.3,1938.4,3.00650667]
[1773010284534,3.01110899,1939.1,1938.4,3.00650667]
[1773010285936,3.01110899,1939.1,1938.4,0.00666596]
[1773010286235,3.01110899,1939.1,1938.0,2.99984071]
[1773010287134,3.01110899,1939.1,1938.0,3.0043915]
[1773010288141,3.01531628,1939.3,1938.1,2.99984071]
[1773010291535,3.01110899,1939.0,1938.0,0.00455079]
[1773010291730,3.01110899,1938.8,1938.0,0.00455079]
[1773010293335,2.94746318,1938.7,1938.0,3.07367144]
[1773010293640,6.753,1938.7,1938.0,3.07367144]
[1773010293938,2.94746318,1939.1,1938.0,3.07367144]
[1773010294137,2.95167047,1939.3,1938.2,3.06912065]
[1773010296940,2.94746318,1939.1,1938.2,3.06912065]
[1773010297536,2.94746318,1939.0,1938.2,3.06912065]
[1773010303938,2.94746318,1939.2,1938.2,3.06912065]
[1773010309742,4.52918944,1940.2,1938.0,0.00455079]
[1773010309743,4.27149944,1940.4,1939.2,3.06912065]
[1773010309945,2.94746318,1940.6,1939.6,3.06912065]
[1773010310843,2.95256604,1940.6,1939.6,3.07301788]
[1773010311953,6.753,1941.1,1940.2,3.06912065]
[1773010312149,2.94746318,1941.0,1940.2,3.06912065]
[1773010313045,2.95169432,1941.0,1940.2,3.06912065]
[1773010314643,0.00423114,1941.0,1940.2,3.06912065]
[1773010314944,2.94746318,1941.4,1940.5,3.06912065]
[1773010315145,2.94746318,1941.8,1940.7,3.06912065]
[1773010315750,2.95108752,1941.8,1940.7,3.06912065]
[1773010316347,2.94746318,1941.7,1940.7,3.06912065]
[1773010322063,0.00362434,1941.8,1941.1,3.06912065]
[1773010322257,2.95108752,1941.8,1941.3,3.06912065]
[1773010322559,2.94746318,1942.5,1941.3,3.06912065]
[1773010323660,2.95407942,1942.5,1941.3,3.06912065]
[1773010324161,2.81122266,1942.3,1941.3,6.747]
[1773010324455,2.81122266,1942.0,1941.1,0.00608837]
[1773010324655,2.81122266,1941.9,1941.1,0.00608837]
[1773010325060,2.81122266,1941.7,1940.7,9.60860808]
[1773010325353,2.81122266,1941.7,1940.4,2.86060808]
[1773010326050,2.81122266,1941.7,1940.4,2.86673541]
[1773010328760,2.81122266,1941.7,1940.6,3.08570921]
[1773010328958,2.81122266,1941.7,1940.8,3.08570921]
[1773010331062,2.81122266,1941.7,1940.5,3.08570921]
[1773010331260,2.81122266,1941.7,1940.7,3.08570921]
[1773010331657,3.07161439,1942.3,1940.7,3.08570921]
[1773010331862,3.07161439,1942.3,1940.9,3.08570921]
[1773010332261,3.07161439,1942.3,1941.3,3.08570921]
[1773010332465,3.07161439,1942.3,1941.5,3.08570921]
[1773010338365,3.07823063,1942.5,1941.5,3.08570921]
[1773010345271,3.07823063,1942.5,1941.5,3.08670921]
[1773010347577,3.07161439,1942.4,1941.5,3.08670921]
[1773010348869,0.00661624,1942.5,1941.5,3.08670921]
[1773010349068,7.96240404,1943.5,1941.5,3.08670921]
[1773010349069,3.07161439,1942.9,1941.7,3.08570921]
[1773010349271,3.07161439,1942.9,1941.6,6.15446486]
[1773010349272,3.07161439,1943.4,1942.1,3.08570921]
[1773010349466,3.07161439,1943.4,1942.3,3.08570921]
[1773010349972,3.07676119,1943.4,1942.3,0.0064562]
[1773010350169,3.07676119,1943.4,1941.9,3.08570921]
[1773010350376,3.07161439,1943.2,1941.8,6.743]
[1773010350674,3.07161439,1943.0,1941.7,3.08570921]
[1773010350874,3.07161439,1942.8,1941.7,3.08570921]
[1773010351277,3.07161439,1942.8,1941.7,3.09160847]
[1773010351578,3.07161439,1942.8,1941.7,0.00589926]
[1773010351774,3.07161439,1942.8,1941.7,3.09160847]
[1773010353082,3.1836598,1943.2,1940.4,2.74696779]
[1773010353083,3.1836598,1942.4,1940.4,2.74696779]
[1773010353373,2.97331676,1942.2,1940.4,2.74696779]
[1773010353974,2.97331676,1942.0,1940.4,2.7530083]
[1773010354178,2.97884755,1942.0,1940.4,2.7530083]
[1773010355075,2.97884755,1942.0,1940.7,2.74696779]
[1773010355274,2.97884755,1942.0,1940.9,2.74696779]
[1773010357684,2.97331676,1941.9,1940.9,2.74696779]
[1773010359982,2.97331676,1941.7,1940.9,2.74696779]
[1773010360185,9.71731676,1941.7,1940.9,2.74696779]
[1773010360379,2.97331676,1941.6,1940.9,2.74696779]
[1773010362690,2.97331676,1941.6,1940.8,6.743]
[1773010362890,2.97331676,1941.6,1940.4,6.75004051]
[1773010363483,2.97331676,1941.6,1940.4,0.00604051]
[1773010363693,2.97331676,1941.1,1939.5,2.74696779]
[1773010363893,2.97331676,1940.9,1939.5,2.74696779]
[1773010364295,2.97331676,1940.7,1939.5,2.74696779]
[1773010364699,2.97331676,1940.7,1939.5,2.75235035]
[1773010367292,2.97331676,1940.5,1939.5,2.75235035]
[1773010367492,2.97705486,1940.5,1939.5,2.75235035]
[1773010370504,0.0037381,1940.5,1939.5,3.01013035]
[1773010371801,2.97705486,1940.5,1939.5,3.01013035]
[1773010373009,2.97331676,1940.9,1939.5,3.01013035]
[1773010373305,2.97331676,1940.9,1939.7,3.00471779]
[1773010373506,2.97331676,1940.9,1939.9,2.74696779]
[1773010373708,2.97331676,1941.2,1939.9,2.74696779]
[1773010374101,2.97877991,1941.2,1939.9,2.74696779]
[1773010374506,2.97877991,1941.2,1940.1,2.74696779]
[1773010384216,2.97209715,1941.6,1940.3,2.8048869]
[1773010384406,2.97209715,1941.6,1940.5,2.8048869]
[1773010384707,2.97209715,1941.6,1940.3,2.8048869]
[1773010385308,2.97628531,1941.6,1940.3,2.8048869]
[1773010387517,2.79513333,1941.5,1940.3,2.8048869]
[1773010391509,2.79513333,1941.4,1940.3,3.0625569]
[1773010391816,2.79932149,1941.6,1940.3,3.0625569]
[1773010392012,2.79932149,1941.6,1940.7,5.97972795]
[1773010392322,0.00418816,1941.6,1940.9,2.79611178]
[1773010392517,0.00418816,1941.6,1940.9,2.80152517]
[1773010392916,2.79513333,1941.9,1940.9,2.80152517]
[1773010393119,2.79513333,1942.4,1941.1,2.79611178]
[1773010393618,2.79513333,1942.3,1941.1,2.79611178]
[1773010394016,2.7995007,1942.3,1941.1,2.79611178]
[1773010395625,2.79513333,1942.2,1941.1,2.79611178]
[1773010396925,2.79513333,1942.0,1940.9,2.80152517]
[1773010397523,2.79513333,1941.8,1940.9,2.80152517]
[1773010398119,2.79513333,1941.7,1940.9,2.80152517]
[1773010400921,0.00436737,1942.3,1940.9,2.80152517]
[1773010400922,2.79513333,1942.0,1940.9,2.80152517]
[1773010404028,2.79513333,1941.7,1940.9,0.00541339]
[1773010404230,2.79513333,1941.6,1940.9,0.00541339]
[1773010405022,2.79513333,1941.6,1940.5,2.79611178]
[1773010406024,2.79513333,1941.6,1940.5,2.80131936]
[1773010407133,2.79513333,1941.5,1940.5,2.80131936]
[1773010409329,2.79513333,1941.4,1940.5,2.80131936]
[1773010414536,2.75703421,1941.8,1940.5,2.80131936]
[1773010414738,2.75703421,1941.8,1940.5,3.05895936]
[1773010415531,2.75703421,1942.2,1941.2,2.64893108]
[1773010422136,2.75703421,1942.2,1941.1,9.39493108]
[1773010423035,2.75703421,1942.2,1941.2,2.64893108]
[1773010427542,2.75703421,1942.1,1941.1,2.64893108]
[1773010427745,2.75703421,1941.9,1941.1,2.64893108]
[1773010427941,2.75703421,1941.8,1940.6,2.64893108]
[1773010428141,2.75703421,1941.8,1940.6,2.90656108]
[1773010428357,2.75703421,1941.8,1940.7,2.64893108]
[1773010429251,2.75703421,1942.0,1940.9,2.64893108]
[1773010431046,2.75703421,1942.0,1941.1,2.64893108]
[1773010435654,2.75703421,1942.0,1941.3,2.64893108]
[1773010436358,2.75703421,1942.0,1941.5,2.64893108]
[1773010437162,2.75703421,1941.9,1941.1,2.64893108]
[1773010437456,2.75703421,1941.9,1941.2,2.64893108]
[1773010438255,2.75703421,1941.9,1941.4,2.64893108]
[1773010440558,0.00436737,1942.3,1941.5,2.64893108]
[1773010440764,2.75703421,1942.0,1941.5,2.64893108]
[1773010441966,2.75703421,1942.2,1941.7,2.64893108]
[1773010443657,2.46610757,1942.4,1942.1,2.5211411]
[1773010443960,2.09129755,1942.4,1942.0,2.5211411]
[1773010444153,2.09129755,1942.4,1941.7,2.12056187]
[1773010444359,2.09129755,1942.4,1941.8,2.5211411]
[1773010444563,2.09675166,1942.4,1941.8,2.52655556]
[1773010445764,4.21731353,1942.4,1941.8,0.00541446]
[1773010445963,2.46610757,1942.3,1941.8,0.00541446]
[1773010446566,2.51593869,1942.1,1941.5,2.46083765]
[1773010446759,2.51593869,1941.9,1941.2,2.46083765]
[1773010447658,6.74945411,1942.4,1941.2,2.46578579]
[1773010447659,2.51593869,1941.7,1941.2,2.46578579]
[1773010448262,2.51593869,1942.3,1941.2,2.46578579]
[1773010448464,2.51593869,1942.3,1941.4,2.46083765]
[1773010455560,2.51593869,1942.3,1941.3,2.46083765]
[1773010460871,2.51593869,1942.1,1941.3,2.46083765]
[1773010461363,2.51593869,1942.1,1941.2,9.20878579]
[1773010461666,2.51593869,1942.1,1941.2,2.46578579]
[1773010461873,2.51593869,1942.1,1941.2,0.00494814]
[1773010462666,2.51593869,1942.1,1940.8,9.20383765]
[1773010462867,2.51593869,1942.1,1940.9,2.46083765]
[1773010463068,2.51593869,1942.0,1940.9,2.46083765]
[1773010463572,2.51593869,1942.0,1940.9,2.46739826]
[1773010468980,2.51593869,1941.8,1940.9,2.46739826]
[1773010470079,2.51593869,1941.7,1940.9,2.46739826]
[1773010476085,0.00545411,1942.4,1940.9,2.46739826]
[1773010476086,2.33507049,1942.2,1941.3,2.34336489]
[1773010483185,2.33507049,1942.2,1941.3,2.60090489]
[1773010483486,2.33507049,1942.3,1941.6,2.34336489]
[1773010489190,0.00545411,1942.4,1941.6,2.34336489]
[1773010489390,2.3405246,1942.4,1941.7,2.34336489]
[1773010492587,2.3405246,1942.4,1941.6,2.34336489]
[1773010492789,2.3405246,1942.4,1941.2,2.34336489]
[1773010493495,2.33507049,1942.2,1941.2,2.34336489]
[1773010498694,2.33507049,1942.1,1941.2,2.34336489]
[1773010501198,2.33507049,1941.9,1941.2,2.34336489]
[1773010501698,2.33507049,1942.3,1941.2,2.34336489]
[1773010502102,2.33507049,1942.2,1941.2,2.34336489]
[1773010505897,2.38898751,1942.4,1941.5,2.71817936]
[1773010506105,2.38898751,1942.4,1941.8,2.46066936]
[1773010508499,2.38898751,1942.4,1941.6,6.744]
[1773010508702,2.38898751,1942.4,1941.6,9.11468814]
[1773010509001,0.00545411,1942.4,1941.7,2.37068814]
[1773010509501,2.28884528,1942.4,1941.7,2.37068814]
[1773010509703,2.28884528,1942.4,1941.9,2.37068814]
[1773010510501,0.00545411,1942.4,1941.9,2.37068814]
[1773010510701,2.28884528,1942.4,1941.9,2.37068814]
[1773010511206,2.28884528,1942.4,1941.7,2.37068814]
[1773010521718,2.28339117,1942.1,1941.6,2.37068814]
[1773010522715,2.28339117,1942.1,1941.5,2.37068814]
[1773010524116,2.11939563,1942.0,1941.4,2.37068814]
[1773010524417,2.28339117,1941.5,1940.9,2.37724875]
[1773010525720,2.28339117,1941.5,1940.9,0.00656061]
[1773010526223,2.28339117,1941.3,1940.6,2.37068814]
[1773010526425,2.28339117,1940.7,1940.2,2.37068814]
[1773010526626,2.28339117,1940.7,1939.7,8.86239563]
[1773010526627,2.28339117,1940.7,1939.9,2.11939563]
[1773010526922,2.28339117,1940.7,1940.0,2.37068814]
[1773010527323,2.28936153,1940.7,1940.0,2.37724691]
[1773010527522,0.00597036,1940.7,1940.2,2.37068814]
[1773010527722,2.28936153,1940.7,1940.2,2.37068814]
[1773010529024,2.28339117,1941.2,1940.4,2.37068814]
[1773010529415,2.28339117,1940.9,1940.0,2.37724691]
[1773010529723,2.28339117,1941.0,1940.6,2.37068814]
[1773010530026,2.28816917,1941.0,1940.4,9.11468814]
[1773010531128,2.28816917,1941.0,1940.5,2.37068814]
[1773010531328,0.004778,1941.0,1940.5,4.49008377]
[1773010531625,2.28339117,1941.2,1940.8,2.37068814]
[1773010532524,2.28339117,1941.2,1940.6,2.37068814]
[1773010532827,2.2889442,1941.2,1940.6,2.37068814]
[1773010533828,0.00555303,1941.2,1940.9,2.2868486]
[1773010534328,2.3163478,1941.2,1940.5,2.11939563]
[1773010534525,2.3163478,1941.2,1940.6,2.2868486]
[1773010536726,2.31079477,1941.0,1940.5,2.2868486]
[1773010536931,2.31079477,1940.6,1940.0,0.00655877]
[1773010537135,2.31079477,1940.4,1939.7,2.2868486]
[1773010537829,2.31079477,1940.4,1939.9,2.2868486]
[1773010538332,2.31079477,1940.4,1939.9,0.00494674]
[1773010539626,2.31079477,1940.4,1939.9,2.29179534]
[1773010540329,2.31079477,1940.4,1939.3,2.2868486]
[1773010540533,2.31079477,1940.4,1939.4,2.2868486]
[1773010540930,2.31079477,1940.9,1939.7,2.2868486]
[1773010541129,2.31079477,1940.9,1939.9,2.2868486]
[1773010541324,2.31079477,1940.9,1939.9,2.29286068]
[1773010543333,2.31079477,1940.9,1939.9,0.00601208]
[1773010543535,2.31079477,1940.7,1939.9,2.29286068]
[1773010545040,2.31079477,1941.1,1940.1,2.2868486]
[1773010545935,2.31079477,1941.0,1940.1,2.2868486]
[1773010548439,2.3163478,1941.2,1940.2,2.2868486]
[1773010549238,0.00555303,1941.2,1940.4,5.47279616]
[1773010549438,0.00555303,1941.2,1940.6,2.2868486]
[1773010551236,2.31079477,1941.5,1940.6,2.2868486]
[1773010552140,2.31482444,1941.5,1940.6,2.2868486]
[1773010552541,2.31482444,1941.5,1940.5,6.748]
[1773010552842,2.31079477,1941.4,1940.3,2.2868486]
[1773010555242,2.31079477,1941.4,1940.0,2.2868486]
[1773010558246,2.31079477,1941.2,1940.0,2.2868486]
[1773010560344,2.31079477,1941.1,1940.0,2.2868486]
[1773010562143,2.31079477,1941.1,1940.2,2.2868486]
[1773010562344,0.00402967,1941.5,1940.2,2.2868486]
[1773010562345,2.31079477,1941.4,1940.2,2.2868486]
[1773010562645,2.31079477,1941.4,1940.4,2.2868486]
[1773010562844,2.31079477,1941.4,1940.6,2.17800531]
[1773010563750,2.31079477,1941.4,1940.5,6.747]
[1773010564349,2.31079477,1941.4,1940.5,8.92500531]
[1773010565345,2.31079477,1941.4,1940.6,2.17800531]
[1773010571443,2.31079477,1941.4,1940.2,2.17931223]
[1773010571643,2.2390106,1941.0,1940.2,2.17931223]
[1773010571844,2.2390106,1941.0,1940.1,2.17931223]
[1773010572342,2.2390106,1941.0,1939.9,2.18532431]
[1773010572646,2.2390106,1940.7,1939.9,2.18532431]
[1773010580963,2.2390106,1940.9,1939.9,2.44303431]
[1773010583064,2.2390106,1941.1,1940.1,2.17931223]
[1773010583265,2.2390106,1941.1,1940.3,2.17931223]
[1773010594283,2.1187353,1941.4,1940.3,2.17931223]
[1773010606288,2.12276497,1941.5,1940.5,2.12218322]
[1773010606488,2.12276497,1941.5,1940.7,2.16218431]
[1773010607892,2.12276497,1941.5,1940.0,2.16218431]
[1773010608093,2.12276497,1941.5,1940.2,2.16218431]
[1773010608687,2.12276497,1941.5,1940.5,2.16218431]
[1773010608892,2.12276497,1941.5,1940.7,2.16218431]
[1773010619303,2.12276497,1941.5,1940.8,2.16218431]
[1773010621194,2.12276497,1941.5,1940.7,2.16218431]
[1773010621498,2.12276497,1941.5,1940.4,2.16218431]
[1773010625905,2.24664384,1941.2,1940.4,2.16218431]
[1773010626405,2.24664384,1941.2,1940.2,2.16571998]
[1773010626797,2.12964428,1941.0,1940.2,2.16571998]
[1773010628104,2.12964428,1941.0,1940.1,2.16571998]
[1773010628309,2.12964428,1940.7,1940.0,8.91171998]
[1773010628605,2.12964428,1940.7,1940.0,2.16571998]
[1773010629199,2.12964428,1940.7,1939.9,0.00601208]
[1773010629403,2.12964428,1940.7,1939.9,2.17173206]
[1773010629809,2.12964428,1940.7,1939.9,0.00601208]
[1773010631715,2.12964428,1940.8,1940.2,2.16571998]
[1773010631910,2.12964428,1940.8,1940.4,2.16571998]
[1773010632310,2.12964428,1940.7,1940.1,2.16571998]
[1773010632710,2.12964428,1941.1,1940.3,2.16571998]
[1773010634108,2.12964428,1941.1,1940.1,2.16571998]
[1773010647221,2.12964428,1941.0,1940.0,2.16571998]
[1773010650220,2.12964428,1941.0,1939.9,0.00601208]
[1773010650815,2.12964428,1940.7,1939.9,0.00601208]
[1773010651019,2.12964428,1940.4,1939.3,2.16571998]
[1773010652019,2.12964428,1940.4,1939.3,2.17055893]
[1773010652420,2.12964428,1940.7,1939.6,2.16571998]
[1773010652619,2.12964428,1940.7,1939.8,2.16571998]
[1773010657630,4.3034372,1941.4,1939.8,2.16571998]
[1773010657631,2.18379035,1941.3,1940.1,2.06288425]
[1773010658123,2.18379035,1941.0,1939.6,2.06288425]